[Event "Live Chess"]
[Site "Chess.com"]
[Date "2024.06.02"]
[Round "-"]
[White "wadsy27"]
[Black "Tatarinov_Maxim"]
[Result "1/2-1/2"]
[WhiteElo "2578"]
[BlackElo "2269"]
[TimeControl "300"]
[EndTime "0:50:30 PDT"]
[Termination "Game drawn - insufficient material"]

1. e4 {[%clk 0:04:57.1]} 1... c5 {[%clk 0:04:56]} 2. Nf3 {[%clk 0:04:56.4]} 2...
Nc6 {[%clk 0:04:54.5]} 3. g3 {[%clk 0:04:55.9]} 3... g6 {[%clk 0:04:53]} 4. Bg2
{[%clk 0:04:55.4]} 4... Bg7 {[%clk 0:04:52.6]} 5. O-O {[%clk 0:04:54.9]} 5... d6
{[%clk 0:04:52.1]} 6. d3 {[%clk 0:04:54.5]} 6... e6 {[%clk 0:04:51.5]} 7. Nbd2
{[%clk 0:04:51.3]} 7... Nge7 {[%clk 0:04:50.5]} 8. Re1 {[%clk 0:04:50.8]} 8...
O-O {[%clk 0:04:49.6]} 9. a4 {[%clk 0:04:49.8]} 9... a6 {[%clk 0:04:48]} 10. Nc4
{[%clk 0:04:48.6]} 10... Rb8 {[%clk 0:04:47.1]} 11. Bf4 {[%clk 0:04:45]} 11...
e5 {[%clk 0:04:44.4]} 12. Bg5 {[%clk 0:04:43.9]} 12... b5 {[%clk 0:04:43.2]} 13.
axb5 {[%clk 0:04:42.9]} 13... axb5 {[%clk 0:04:43.1]} 14. Bxe7 {[%clk
0:04:41.2]} 14... Nxe7 {[%clk 0:04:38.3]} 15. Ne3 {[%clk 0:04:40.2]} 15... h6
{[%clk 0:04:36.7]} 16. Ra7 {[%clk 0:04:17.1]} 16... Nc6 {[%clk 0:04:26.5]} 17.
Ra3 {[%clk 0:04:14.1]} 17... Be6 {[%clk 0:04:25.2]} 18. h4 {[%clk 0:03:55.9]}
18... b4 {[%clk 0:04:21.3]} 19. Ra1 {[%clk 0:03:54.8]} 19... Nd4 {[%clk
0:04:15.8]} 20. b3 {[%clk 0:03:51.5]} 20... Qd7 {[%clk 0:04:03.8]} 21. Kh2
{[%clk 0:03:31.6]} 21... f5 {[%clk 0:03:52.8]} 22. Nxd4 {[%clk 0:03:30.3]} 22...
exd4 {[%clk 0:03:50.6]} 23. exf5 {[%clk 0:03:26.4]} 23... Bxf5 {[%clk
0:03:49.8]} 24. Nxf5 {[%clk 0:03:23.4]} 24... Qxf5 {[%clk 0:03:48.8]} 25. f4
{[%clk 0:03:22.1]} 25... Bf6 {[%clk 0:03:23]} 26. Ra7 {[%clk 0:03:19.2]} 26...
Rf7 {[%clk 0:03:18.5]} 27. Rxf7 {[%clk 0:03:14]} 27... Kxf7 {[%clk 0:03:18.4]}
28. Qf3 {[%clk 0:03:12.9]} 28... Re8 {[%clk 0:03:08.9]} 29. g4 {[%clk
0:03:08.6]} 29... Qd7 {[%clk 0:03:02.3]} 30. Qd5+ {[%clk 0:03:04.8]} 30... Kg7
{[%clk 0:02:45.9]} 31. Rxe8 {[%clk 0:03:02.4]} 31... Qxe8 {[%clk 0:02:45.8]} 32.
g5 {[%clk 0:02:50]} 32... hxg5 {[%clk 0:02:43]} 33. hxg5 {[%clk 0:02:48.1]}
33... Be7 {[%clk 0:02:39.1]} 34. Be4 {[%clk 0:02:43.5]} 34... Qf7 {[%clk
0:02:37]} 35. Qxf7+ {[%clk 0:02:39.3]} 35... Kxf7 {[%clk 0:02:36.9]} 36. Kg3
{[%clk 0:02:38.5]} 36... Bd8 {[%clk 0:02:28.1]} 37. Bd5+ {[%clk 0:02:37.8]}
37... Ke7 {[%clk 0:02:22.7]} 38. Kf3 {[%clk 0:02:37.1]} 38... Bc7 {[%clk
0:02:11.1]} 39. Ke4 {[%clk 0:02:36.2]} 39... Bd8 {[%clk 0:02:10.1]} 40. Bb7
{[%clk 0:02:33.2]} 40... Ke6 {[%clk 0:02:07.1]} 41. Bc8+ {[%clk 0:02:31.9]}
41... Kf7 {[%clk 0:02:03.2]} 42. Kd5 {[%clk 0:02:31.2]} 42... Be7 {[%clk
0:02:02.2]} 43. Bd7 {[%clk 0:02:27.8]} 43... Bf8 {[%clk 0:02:01]} 44. Be6+
{[%clk 0:02:24.9]} 44... Ke7 {[%clk 0:01:56.3]} 45. Bg8 {[%clk 0:02:23.7]} 45...
Bg7 {[%clk 0:01:55.4]} 46. Bh7 {[%clk 0:02:17.5]} 46... Kf7 {[%clk 0:01:52.9]}
47. Kxd6 {[%clk 0:02:12.8]} 47... Bf8+ {[%clk 0:01:50.7]} 48. Kd7 {[%clk
0:02:11.9]} 48... Kg7 {[%clk 0:01:49.9]} 49. Bxg6 {[%clk 0:02:03]} 49... Kxg6
{[%clk 0:01:48.5]} 50. Ke6 {[%clk 0:02:02.3]} 50... Bg7 {[%clk 0:01:39.5]} 51.
Ke7 {[%clk 0:01:55.8]} 51... Bh8 {[%clk 0:01:14.4]} 52. Ke6 {[%clk 0:01:48.4]}
52... Bg7 {[%clk 0:01:13.1]} 53. Ke7 {[%clk 0:01:41.3]} 53... Bh8 {[%clk
0:01:12.1]} 54. Kd6 {[%clk 0:01:40.8]} 54... Kf5 {[%clk 0:01:08.9]} 55. Kxc5
{[%clk 0:01:40]} 55... Kxf4 {[%clk 0:01:08.4]} 56. g6 {[%clk 0:01:38.4]} 56...
Kf5 {[%clk 0:01:07.6]} 57. Kxb4 {[%clk 0:01:36.9]} 57... Kxg6 {[%clk 0:01:06.5]}
58. Kc5 {[%clk 0:01:36.7]} 58... Kf5 {[%clk 0:01:02.6]} 59. b4 {[%clk
0:01:35.9]} 59... Ke6 {[%clk 0:01:01.8]} 60. Kc6 {[%clk 0:01:35.3]} 60... Be5
{[%clk 0:00:56.4]} 61. b5 {[%clk 0:01:33.2]} 61... Kf5 {[%clk 0:00:55.6]} 62. b6
{[%clk 0:01:31.7]} 62... Kf4 {[%clk 0:00:55.1]} 63. b7 {[%clk 0:01:30.4]} 63...
Ke3 {[%clk 0:00:53]} 64. Kd5 {[%clk 0:01:29.5]} 64... Bh2 {[%clk 0:00:49.9]} 65.
Kc4 {[%clk 0:01:28.6]} 65... Bb8 {[%clk 0:00:47.5]} 66. c3 {[%clk 0:01:25]}
66... dxc3 {[%clk 0:00:45.1]} 67. Kxc3 {[%clk 0:01:24.9]} 67... Kf4 {[%clk
0:00:41.9]} 68. Kc4 {[%clk 0:01:24.2]} 68... Ke5 {[%clk 0:00:41.1]} 69. Kc5
{[%clk 0:01:23.5]} 69... Ke6 {[%clk 0:00:40]} 70. Kc6 {[%clk 0:01:22.1]} 70...
Ke7 {[%clk 0:00:39.1]} 71. d4 {[%clk 0:01:19.3]} 71... Kd8 {[%clk 0:00:38.2]}
72. d5 {[%clk 0:01:18.5]} 72... Bc7 {[%clk 0:00:28]} 73. Kb5 {[%clk 0:01:15.2]}
73... Kd7 {[%clk 0:00:25.3]} 74. Ka6 {[%clk 0:01:14.2]} 74... Kd6 {[%clk
0:00:24.3]} 75. Ka7 {[%clk 0:01:13.5]} 75... Kxd5 {[%clk 0:00:23.3]} 76. b8=Q
{[%clk 0:01:12.7]} 76... Bxb8+ {[%clk 0:00:22.9]} 1/2-1/2

[Event "Live Chess"]
[Site "Chess.com"]
[Date "2024.06.02"]
[Round "-"]
[White "NAZRIZ1977"]
[Black "AlanBstard10"]
[Result "1-0"]
[WhiteElo "2128"]
[BlackElo "1191"]
[TimeControl "300"]
[EndTime "0:50:34 PDT"]
[Termination "NAZRIZ1977 won by checkmate"]

1. e4 {[%clk 0:04:52.1]} 1... d5 {[%clk 0:04:58.3]} 2. exd5 {[%clk 0:04:50.8]}
2... Nf6 {[%clk 0:04:57.4]} 3. Nc3 {[%clk 0:04:49.5]} 3... Nxd5 {[%clk
0:04:55.5]} 4. Nf3 {[%clk 0:04:48.7]} 4... Nxc3 {[%clk 0:04:53.3]} 5. bxc3
{[%clk 0:04:47.1]} 5... Bg4 {[%clk 0:04:52.4]} 6. Be2 {[%clk 0:04:45.8]} 6...
Nc6 {[%clk 0:04:51.2]} 7. O-O {[%clk 0:04:44]} 7... e5 {[%clk 0:04:45.5]} 8. Rb1
{[%clk 0:04:41.9]} 8... b6 {[%clk 0:04:39.6]} 9. Nxe5 {[%clk 0:04:30.6]} 9...
Bxe2 {[%clk 0:04:37.2]} 10. Qxe2 {[%clk 0:04:28.6]} 10... Nxe5 {[%clk
0:04:21.4]} 11. Qxe5+ {[%clk 0:04:26.8]} 11... Be7 {[%clk 0:04:21.1]} 12. Re1
{[%clk 0:04:25.3]} 12... f6 {[%clk 0:04:18.3]} 13. Qe4 {[%clk 0:04:19.8]} 13...
Kf7 {[%clk 0:04:02.9]} 14. Qe6+ {[%clk 0:04:14.6]} 14... Ke8 {[%clk 0:04:00.4]}
15. Ba3 {[%clk 0:04:11.8]} 15... Rf8 {[%clk 0:03:55.8]} 16. Qxe7+ {[%clk
0:04:08.9]} 16... Qxe7 {[%clk 0:03:54.2]} 17. Rxe7+ {[%clk 0:04:07.6]} 17... Kd8
{[%clk 0:03:50.4]} 18. Rbe1 {[%clk 0:04:06.2]} 18... Rg8 {[%clk 0:03:46.7]} 19.
Rf7 {[%clk 0:04:04.1]} 19... Kc8 {[%clk 0:03:44.6]} 20. Ree7 {[%clk 0:04:01.7]}
20... c5 {[%clk 0:03:39.5]} 21. d4 {[%clk 0:03:57.7]} 21... a5 {[%clk
0:03:34.9]} 22. dxc5 {[%clk 0:03:56.1]} 22... bxc5 {[%clk 0:03:33.8]} 23. Bxc5
{[%clk 0:03:55.1]} 23... Rb8 {[%clk 0:03:32.1]} 24. Rc7+ {[%clk 0:03:51.3]}
24... Kd8 {[%clk 0:03:30.7]} 25. g3 {[%clk 0:03:49.9]} 25... Rb1+ {[%clk
0:03:28.8]} 26. Kg2 {[%clk 0:03:49]} 26... Re8 {[%clk 0:03:25.2]} 27. Ra7 {[%clk
0:03:46.8]} 27... Rb8 {[%clk 0:03:13.3]} 28. Rfd7+ {[%clk 0:03:45.5]} 28... Kc8
{[%clk 0:03:11.4]} 29. Rac7# {[%clk 0:03:45.4]} 1-0

[Event "Live Chess"]
[Site "Chess.com"]
[Date "2024.06.02"]
[Round "-"]
[White "booktrunk"]
[Black "nyclone"]
[Result "0-1"]
[WhiteElo "1493"]
[BlackElo "1140"]
[TimeControl "300"]
[EndTime "0:50:45 PDT"]
[Termination "nyclone won by checkmate"]

1. d4 {[%clk 0:04:55]} 1... e6 {[%clk 0:04:58.6]} 2. Nc3 {[%clk 0:04:50.9]} 2...
b6 {[%clk 0:04:57.6]} 3. Bf4 {[%clk 0:04:48.9]} 3... Bb7 {[%clk 0:04:50.8]} 4.
f3 {[%clk 0:04:43.3]} 4... Nf6 {[%clk 0:04:48.2]} 5. Nb5 {[%clk 0:04:40.4]} 5...
Bd6 {[%clk 0:04:32.4]} 6. Nxd6+ {[%clk 0:04:25.4]} 6... cxd6 {[%clk 0:04:29.4]}
7. Bxd6 {[%clk 0:04:23.8]} 7... Nc6 {[%clk 0:04:06.8]} 8. e3 {[%clk 0:04:19.7]}
8... Ne7 {[%clk 0:04:05.4]} 9. Bd3 {[%clk 0:04:14]} 9... O-O {[%clk 0:04:03]}
10. Qe2 {[%clk 0:04:08.6]} 10... Ne8 {[%clk 0:04:01.2]} 11. Bg3 {[%clk
0:04:06.2]} 11... d5 {[%clk 0:03:59.7]} 12. Nh3 {[%clk 0:04:02.5]} 12... Nf6
{[%clk 0:03:58.9]} 13. Nf4 {[%clk 0:04:00.7]} 13... Ng6 {[%clk 0:03:47.4]} 14.
Nxg6 {[%clk 0:03:58.4]} 14... fxg6 {[%clk 0:03:46.1]} 15. f4 {[%clk 0:03:56.9]}
15... Ne4 {[%clk 0:03:27.9]} 16. Bxe4 {[%clk 0:03:49.5]} 16... dxe4 {[%clk
0:03:26.4]} 17. O-O-O {[%clk 0:03:47.5]} 17... Bd5 {[%clk 0:03:21.3]} 18. b3
{[%clk 0:03:44.6]} 18... Rc8 {[%clk 0:03:15.8]} 19. Be1 {[%clk 0:03:36.4]} 19...
Qd6 {[%clk 0:03:12.1]} 20. Qb5 {[%clk 0:03:31.2]} 20... Qa3+ {[%clk 0:03:00.4]}
21. Kb1 {[%clk 0:03:26.3]} 21... Qd6 {[%clk 0:02:46.7]} 22. Bb4 {[%clk
0:03:23.5]} 22... Qd8 {[%clk 0:02:40.8]} 23. Bxf8 {[%clk 0:03:21.6]} 23... Qxf8
{[%clk 0:02:40.4]} 24. Rhf1 {[%clk 0:03:17.1]} 24... Qe7 {[%clk 0:02:33.4]} 25.
g3 {[%clk 0:03:14.6]} 25... Qb7 {[%clk 0:02:24.9]} 26. Rf2 {[%clk 0:03:09.1]}
26... a6 {[%clk 0:02:23.2]} 27. Qb4 {[%clk 0:03:01.2]} 27... a5 {[%clk
0:02:22.5]} 28. Qa3 {[%clk 0:02:59.6]} 28... Qa6 {[%clk 0:01:42.5]} 29. Qb2
{[%clk 0:02:48.7]} 29... b5 {[%clk 0:01:40.8]} 30. a3 {[%clk 0:02:46.7]} 30...
b4 {[%clk 0:01:33.4]} 31. a4 {[%clk 0:02:45.6]} 31... Rc3 {[%clk 0:01:31]} 32.
Rfd2 {[%clk 0:02:39.2]} 32... Qc6 {[%clk 0:01:21.7]} 33. Re1 {[%clk 0:02:32.4]}
33... h5 {[%clk 0:01:14.1]} 34. h4 {[%clk 0:02:28]} 34... Kf7 {[%clk 0:01:12.3]}
35. Ka2 {[%clk 0:02:23.4]} 35... Qxa4+ {[%clk 0:01:03.9]} 36. Kb1 {[%clk
0:02:18.8]} 36... Bxb3 {[%clk 0:00:54.1]} 37. Qa1 {[%clk 0:02:16.4]} 37... Bxc2+
{[%clk 0:00:49.5]} 38. Kc1 {[%clk 0:01:56.9]} 38... Qxa1# {[%clk 0:00:44]} 0-1

[Event "Live Chess"]
[Site "Chess.com"]
[Date "2024.06.02"]
[Round "-"]
[White "Greenbecker"]
[Black "hapehansen"]
[Result "0-1"]
[WhiteElo "1743"]
[BlackElo "2249"]
[TimeControl "300"]
[EndTime "0:51:24 PDT"]
[Termination "hapehansen won by checkmate"]

1. e4 {[%clk 0:04:47.2]} 1... c6 {[%clk 0:04:57]} 2. d4 {[%clk 0:04:45.4]} 2...
d5 {[%clk 0:04:56.6]} 3. exd5 {[%clk 0:04:44.6]} 3... cxd5 {[%clk 0:04:55.1]} 4.
Nf3 {[%clk 0:04:44.2]} 4... Nc6 {[%clk 0:04:52.8]} 5. c3 {[%clk 0:04:42]} 5...
Nf6 {[%clk 0:04:48.1]} 6. Bd3 {[%clk 0:04:41.1]} 6... Bg4 {[%clk 0:04:45.5]} 7.
O-O {[%clk 0:04:40.3]} 7... e6 {[%clk 0:04:43.2]} 8. h3 {[%clk 0:04:39.5]} 8...
Bxf3 {[%clk 0:04:40.3]} 9. Qxf3 {[%clk 0:04:38.1]} 9... Bd6 {[%clk 0:04:39.9]}
10. Bg5 {[%clk 0:04:36.6]} 10... h6 {[%clk 0:04:36.3]} 11. Bxf6 {[%clk
0:04:35.3]} 11... Qxf6 {[%clk 0:04:35.7]} 12. Qxf6 {[%clk 0:04:33.7]} 12... gxf6
{[%clk 0:04:35.6]} 13. Nd2 {[%clk 0:04:32.4]} 13... f5 {[%clk 0:04:31.7]} 14.
Rab1 {[%clk 0:04:26.6]} 14... Ke7 {[%clk 0:04:26.7]} 15. b4 {[%clk 0:04:25.5]}
15... Rac8 {[%clk 0:04:25.1]} 16. a4 {[%clk 0:04:22.6]} 16... Nb8 {[%clk
0:04:21]} 17. c4 {[%clk 0:04:18.6]} 17... dxc4 {[%clk 0:04:15.7]} 18. Nxc4
{[%clk 0:04:17.5]} 18... Nd7 {[%clk 0:04:10.6]} 19. Rfe1 {[%clk 0:04:05.7]}
19... f4 {[%clk 0:03:45.7]} 20. Nxd6 {[%clk 0:03:58.4]} 20... Kxd6 {[%clk
0:03:43.3]} 21. Re4 {[%clk 0:03:55.2]} 21... Rc3 {[%clk 0:03:34.2]} 22. Bf1
{[%clk 0:03:38.5]} 22... f3 {[%clk 0:03:30.3]} 23. gxf3 {[%clk 0:03:32.9]} 23...
Rxf3 {[%clk 0:03:24.5]} 24. Bg2 {[%clk 0:03:30.7]} 24... Rg8 {[%clk 0:03:09.8]}
25. Kf1 {[%clk 0:03:24.9]} 25... Ra3 {[%clk 0:03:03]} 26. a5 {[%clk 0:03:19.6]}
26... b6 {[%clk 0:02:53.4]} 27. axb6 {[%clk 0:03:07.7]} 27... Nxb6 {[%clk
0:02:52.1]} 28. Rh4 {[%clk 0:03:03.2]} 28... Rg6 {[%clk 0:02:45.3]} 29. Rc1
{[%clk 0:02:56.8]} 29... Nd5 {[%clk 0:02:39.4]} 30. Bxd5 {[%clk 0:02:41.4]}
30... exd5 {[%clk 0:02:36.5]} 31. Rc5 {[%clk 0:02:35.1]} 31... Ra1+ {[%clk
0:02:28.3]} 32. Ke2 {[%clk 0:02:32.1]} 32... Ra2+ {[%clk 0:02:27.2]} 33. Kd3
{[%clk 0:02:27.6]} 33... Rxf2 {[%clk 0:02:20.4]} 34. Rh5 {[%clk 0:02:23.1]}
34... Rg3# {[%clk 0:02:18.7]} 0-1

[Event "Live Chess"]
[Site "Chess.com"]
[Date "2024.06.02"]
[Round "-"]
[White "DavrosLight"]
[Black "peteopeteo"]
[Result "0-1"]
[WhiteElo "763"]
[BlackElo "1549"]
[TimeControl "300"]
[EndTime "0:51:29 PDT"]
[Termination "peteopeteo won by resignation"]

1. e4 {[%clk 0:04:57.6]} 1... c6 {[%clk 0:04:58.8]} 2. d4 {[%clk 0:04:54.5]}
2... d5 {[%clk 0:04:58.4]} 3. exd5 {[%clk 0:04:53.8]} 3... cxd5 {[%clk
0:04:58.3]} 4. Bd3 {[%clk 0:04:52.9]} 4... Nf6 {[%clk 0:04:57.6]} 5. c3 {[%clk
0:04:52.1]} 5... Nc6 {[%clk 0:04:56.9]} 6. Bf4 {[%clk 0:04:50.6]} 6... Bg4
{[%clk 0:04:48.4]} 7. Qb3 {[%clk 0:04:48.1]} 7... Qb6 {[%clk 0:04:40]} 8. Nd2
{[%clk 0:04:46.1]} 8... Qxb3 {[%clk 0:04:37]} 9. axb3 {[%clk 0:04:43]} 9... e6
{[%clk 0:04:35.6]} 10. Ngf3 {[%clk 0:04:39.1]} 10... Be7 {[%clk 0:04:31.7]} 11.
O-O {[%clk 0:04:35.8]} 11... O-O {[%clk 0:04:30.7]} 12. h3 {[%clk 0:04:31.9]}
12... Bh5 {[%clk 0:04:29.3]} 13. c4 {[%clk 0:04:15.7]} 13... Bb4 {[%clk
0:04:14]} 14. cxd5 {[%clk 0:04:06.6]} 14... Nxd5 {[%clk 0:04:13.9]} 15. g4
{[%clk 0:03:51]} 15... Nxf4 {[%clk 0:04:10.2]} 16. Bxh7+ {[%clk 0:03:40.9]}
16... Kxh7 {[%clk 0:04:06.6]} 17. gxh5 {[%clk 0:03:39.6]} 17... Bxd2 {[%clk
0:04:00]} 18. Nxd2 {[%clk 0:03:35.3]} 18... Nxh3+ {[%clk 0:03:58.9]} 19. Kh2
{[%clk 0:03:33.8]} 19... Nf4 {[%clk 0:03:57.9]} 20. Rg1 {[%clk 0:03:23.8]} 20...
Nxh5 {[%clk 0:03:54.2]} 21. Rg2 {[%clk 0:03:13.9]} 21... g6 {[%clk 0:03:50.2]}
22. Ne4 {[%clk 0:03:10.2]} 22... Nxd4 {[%clk 0:03:47]} 23. b4 {[%clk 0:03:00.5]}
23... Kg7 {[%clk 0:03:36.2]} 24. Rd1 {[%clk 0:02:54.5]} 24... Nf3+ {[%clk
0:03:28]} 25. Kh1 {[%clk 0:02:44.6]} 25... Nf4 {[%clk 0:03:18.8]} 26. Ng3 {[%clk
0:02:18.8]} 26... Rh8+ {[%clk 0:03:15.7]} 27. Rh2 {[%clk 0:02:10.7]} 27... Nxh2
{[%clk 0:03:12]} 28. Kg1 {[%clk 0:02:03.9]} 28... Nf3+ {[%clk 0:03:11]} 0-1

[Event "Live Chess"]
[Site "Chess.com"]
[Date "2024.06.02"]
[Round "-"]
[White "McFim"]
[Black "Lukaskonstanta4"]
[Result "1-0"]
[WhiteElo "1708"]
[BlackElo "913"]
[TimeControl "300"]
[EndTime "0:52:00 PDT"]
[Termination "McFim won on time"]

1. e4 {[%clk 0:04:58.4]} 1... c5 {[%clk 0:04:55.2]} 2. Nf3 {[%clk 0:04:56.7]}
2... Nc6 {[%clk 0:04:53]} 3. Bb5 {[%clk 0:04:54.9]} 3... e6 {[%clk 0:04:40.6]}
4. Bxc6 {[%clk 0:04:52.6]} 4... bxc6 {[%clk 0:04:37.7]} 5. O-O {[%clk
0:04:52.1]} 5... d5 {[%clk 0:04:35.6]} 6. e5 {[%clk 0:04:50.5]} 6... Ne7 {[%clk
0:04:31.7]} 7. Re1 {[%clk 0:04:49]} 7... Nf5 {[%clk 0:04:25]} 8. d3 {[%clk
0:04:47.3]} 8... g6 {[%clk 0:04:02.1]} 9. Nc3 {[%clk 0:04:36.7]} 9... Bg7 {[%clk
0:03:53.9]} 10. h3 {[%clk 0:04:33.2]} 10... O-O {[%clk 0:03:48.7]} 11. Na4
{[%clk 0:04:28.3]} 11... c4 {[%clk 0:02:57.5]} 12. d4 {[%clk 0:04:23.1]} 12...
a5 {[%clk 0:02:40.2]} 13. Nc5 {[%clk 0:04:20]} 13... Ba6 {[%clk 0:02:37.8]} 14.
a4 {[%clk 0:04:13.7]} 14... c3 {[%clk 0:02:31]} 15. b3 {[%clk 0:04:06.5]} 15...
Re8 {[%clk 0:02:18.6]} 16. Ba3 {[%clk 0:03:49.3]} 16... Nh4 {[%clk 0:01:42.6]}
17. Nxa6 {[%clk 0:03:39.7]} 17... Rxa6 {[%clk 0:01:38.2]} 18. Qd3 {[%clk
0:03:36.6]} 18... Rb6 {[%clk 0:01:29.8]} 19. Bc5 {[%clk 0:03:33.8]} 19... Rb7
{[%clk 0:01:26.8]} 20. Qxc3 {[%clk 0:03:31.3]} 20... Nxf3+ {[%clk 0:01:19.5]}
21. Qxf3 {[%clk 0:03:28.9]} 21... h5 {[%clk 0:01:13]} 22. Qc3 {[%clk 0:03:24.1]}
22... Qc7 {[%clk 0:01:02]} 23. Bd6 {[%clk 0:03:13.7]} 23... Qc8 {[%clk 0:01:00]}
24. Qc5 {[%clk 0:03:10.9]} 24... Bf8 {[%clk 0:00:47.3]} 25. Bxf8 {[%clk
0:03:08.3]} 25... Rxf8 {[%clk 0:00:45.1]} 26. Qxa5 {[%clk 0:02:56.2]} 26... Qd7
{[%clk 0:00:32.3]} 27. Qc5 {[%clk 0:02:53.3]} 27... Ra8 {[%clk 0:00:24.2]} 28.
Rad1 {[%clk 0:02:50.3]} 28... Rba7 {[%clk 0:00:16.1]} 29. Rd3 {[%clk 0:02:47.4]}
29... Ra5 {[%clk 0:00:10.3]} 30. Qa3 {[%clk 0:02:45]} 30... Qd8 {[%clk
0:00:01.3]} 31. Rc3 {[%clk 0:02:42.6]} 1-0

[Event "Live Chess"]
[Site "Chess.com"]
[Date "2024.06.02"]
[Round "-"]
[White "juniortay"]
[Black "Dhaydon19"]
[Result "1-0"]
[WhiteElo "2397"]
[BlackElo "2638"]
[TimeControl "300"]
[EndTime "0:52:12 PDT"]
[Termination "juniortay won by resignation"]

1. e4 {[%clk 0:04:57.1]} 1... e6 {[%clk 0:04:59.6]} 2. Nc3 {[%clk 0:04:55.9]}
2... d5 {[%clk 0:04:58.7]} 3. Nf3 {[%clk 0:04:55.4]} 3... dxe4 {[%clk
0:04:57.9]} 4. Nxe4 {[%clk 0:04:54.3]} 4... Be7 {[%clk 0:04:57.5]} 5. d4 {[%clk
0:04:53.3]} 5... Nd7 {[%clk 0:04:57.1]} 6. Bd3 {[%clk 0:04:52.6]} 6... Ngf6
{[%clk 0:04:56.8]} 7. Neg5 {[%clk 0:04:51.9]} 7... c5 {[%clk 0:04:55.2]} 8. Nxf7
{[%clk 0:04:50.5]} 8... Kxf7 {[%clk 0:04:52.6]} 9. Ng5+ {[%clk 0:04:49.8]} 9...
Kg8 {[%clk 0:04:51.4]} 10. Nxe6 {[%clk 0:04:46.6]} 10... Qb6 {[%clk 0:04:50.5]}
11. Qe2 {[%clk 0:04:44.2]} 11... Nf8 {[%clk 0:04:22.1]} 12. Ng5 {[%clk
0:04:34.9]} 12... Be6 {[%clk 0:04:00]} 13. O-O {[%clk 0:04:08.6]} 13... Re8
{[%clk 0:03:31.4]} 14. Nxe6 {[%clk 0:03:53.4]} 14... Nxe6 {[%clk 0:03:25.3]} 15.
Bc4 {[%clk 0:03:51.6]} 15... Kf7 {[%clk 0:03:10.8]} 16. Re1 {[%clk 0:03:47.1]}
16... Bd8 {[%clk 0:03:07.3]} 17. dxc5 {[%clk 0:03:40.1]} 17... Qc6 {[%clk
0:03:04.5]} 18. Bf4 {[%clk 0:03:30.1]} 18... Nd5 {[%clk 0:02:54.3]} 19. Qh5+
{[%clk 0:03:24.2]} 19... Kf8 {[%clk 0:02:46.6]} 20. Bd6+ {[%clk 0:03:14.4]}
20... Be7 {[%clk 0:02:33.8]} 21. Bxd5 {[%clk 0:03:11.4]} 1-0

[Event "Live Chess"]
[Site "Chess.com"]
[Date "2024.06.02"]
[Round "-"]
[White "RG_ChessLegend"]
[Black "MagnersCarlsberg2870"]
[Result "1-0"]
[WhiteElo "1524"]
[BlackElo "1807"]
[TimeControl "300"]
[EndTime "0:52:57 PDT"]
[Termination "RG_ChessLegend won by resignation"]

1. e4 {[%clk 0:04:58.8]} 1... e5 {[%clk 0:04:58.3]} 2. Nf3 {[%clk 0:04:58.1]}
2... Nf6 {[%clk 0:04:56.6]} 3. Nc3 {[%clk 0:04:56.5]} 3... Nc6 {[%clk
0:04:55.6]} 4. Bc4 {[%clk 0:04:55.8]} 4... Bc5 {[%clk 0:04:54.5]} 5. d3 {[%clk
0:04:55.2]} 5... h6 {[%clk 0:04:51]} 6. O-O {[%clk 0:04:53.7]} 6... d6 {[%clk
0:04:50.2]} 7. Be3 {[%clk 0:04:52.1]} 7... Bg4 {[%clk 0:04:48.6]} 8. Bxc5 {[%clk
0:04:49]} 8... dxc5 {[%clk 0:04:47.5]} 9. h3 {[%clk 0:04:48.4]} 9... Bh5 {[%clk
0:04:45.2]} 10. Re1 {[%clk 0:04:44.2]} 10... Nd4 {[%clk 0:04:43.9]} 11. g4
{[%clk 0:04:39.3]} 11... Bg6 {[%clk 0:04:38.5]} 12. Nxe5 {[%clk 0:04:34.8]}
12... Qe7 {[%clk 0:04:31.6]} 13. Nxg6 {[%clk 0:04:30.3]} 13... fxg6 {[%clk
0:04:30.6]} 14. e5 {[%clk 0:04:21.7]} 14... Nd7 {[%clk 0:04:25.2]} 15. f4 {[%clk
0:04:12.1]} 15... Qh4 {[%clk 0:04:23.3]} 16. Kg2 {[%clk 0:04:09]} 16... O-O-O
{[%clk 0:04:16.4]} 17. Nb5 {[%clk 0:04:02]} 17... Rdf8 {[%clk 0:04:08.7]} 18.
Nxd4 {[%clk 0:03:58]} 18... Rxf4 {[%clk 0:04:05.3]} 19. Nf3 {[%clk 0:03:46.6]}
19... Qf6 {[%clk 0:03:59.8]} 20. exf6 {[%clk 0:03:44.5]} 1-0

[Event "Live Chess"]
[Site "Chess.com"]
[Date "2024.06.02"]
[Round "-"]
[White "vincents82"]
[Black "f4nomore"]
[Result "1-0"]
[WhiteElo "2005"]
[BlackElo "1248"]
[TimeControl "300"]
[EndTime "0:53:40 PDT"]
[Termination "vincents82 won by resignation"]

1. e4 {[%clk 0:04:57]} 1... g6 {[%clk 0:04:59.2]} 2. d4 {[%clk 0:04:55.9]} 2...
Bg7 {[%clk 0:04:59]} 3. Nc3 {[%clk 0:04:55.4]} 3... d6 {[%clk 0:04:57.9]} 4. Nf3
{[%clk 0:04:54.2]} 4... Nf6 {[%clk 0:04:55.9]} 5. Be2 {[%clk 0:04:46.4]} 5...
O-O {[%clk 0:04:54.1]} 6. h3 {[%clk 0:04:43.7]} 6... Nbd7 {[%clk 0:04:52.7]} 7.
Be3 {[%clk 0:04:42.5]} 7... b6 {[%clk 0:04:50.1]} 8. Qd2 {[%clk 0:04:41.5]} 8...
Bb7 {[%clk 0:04:48.3]} 9. Bd3 {[%clk 0:04:39.2]} 9... c5 {[%clk 0:04:46.8]} 10.
e5 {[%clk 0:04:37.9]} 10... dxe5 {[%clk 0:04:44.5]} 11. dxe5 {[%clk 0:04:35.1]}
11... Nd5 {[%clk 0:04:35.8]} 12. Nxd5 {[%clk 0:04:32.8]} 12... Bxd5 {[%clk
0:04:33.1]} 13. Bf4 {[%clk 0:04:30.2]} 13... e6 {[%clk 0:04:28]} 14. Qe3 {[%clk
0:04:26.2]} 14... c4 {[%clk 0:04:14]} 15. Be4 {[%clk 0:04:24.2]} 15... Bxe4
{[%clk 0:04:10.7]} 16. Qxe4 {[%clk 0:04:23.1]} 16... Rc8 {[%clk 0:04:09.4]} 17.
c3 {[%clk 0:04:21.4]} 17... Nc5 {[%clk 0:03:58.5]} 18. Qe3 {[%clk 0:04:20.3]}
18... Nd3+ {[%clk 0:03:52.7]} 19. Kf1 {[%clk 0:04:19.4]} 19... Nxb2 {[%clk
0:03:41.6]} 20. g3 {[%clk 0:04:18.4]} 20... Qd5 {[%clk 0:03:23.9]} 21. Kg2
{[%clk 0:04:13]} 21... Nd3 {[%clk 0:03:10.8]} 22. h4 {[%clk 0:04:09.8]} 22...
Nxf4+ {[%clk 0:03:08.4]} 23. Qxf4 {[%clk 0:04:08.7]} 23... Qd3 {[%clk
0:02:52.6]} 24. h5 {[%clk 0:04:05.6]} 24... Qxc3 {[%clk 0:02:47.8]} 25. Rae1
{[%clk 0:03:56.1]} 25... Rc5 {[%clk 0:02:39.2]} 26. Re3 {[%clk 0:03:32.9]} 26...
Qa5 {[%clk 0:02:29.6]} 27. Qh4 {[%clk 0:03:00.6]} 27... c3 {[%clk 0:02:19.9]}
28. hxg6 {[%clk 0:02:54.8]} 28... fxg6 {[%clk 0:02:17.4]} 29. Qxh7+ {[%clk
0:02:50.1]} 29... Kf7 {[%clk 0:02:14.2]} 30. Ng5+ {[%clk 0:02:49.2]} 30... Ke7
{[%clk 0:02:02.3]} 31. Qxg7+ {[%clk 0:02:47.8]} 31... Ke8 {[%clk 0:01:52.7]} 32.
Rh7 {[%clk 0:02:37.5]} 32... Rxf2+ {[%clk 0:01:46.3]} 33. Kxf2 {[%clk 0:02:32]}
33... Qxa2+ {[%clk 0:01:42.2]} 34. Kf3 {[%clk 0:02:29.5]} 34... Qd5+ {[%clk
0:01:37.6]} 35. Ne4 {[%clk 0:02:27.5]} 1-0